[Event "41st BAN National Women Chess-ch 2022"]
[Site "Dhaka"]
[Date "2022.11.18"]
[Round "2.1"]
[White "Khan, Nazrana"]
[Black "Noshin, Anjum"]
[Result "1/2-1/2"]
[ECO "D24"]
[WhiteElo "1908"]
[BlackElo "1907"]
[Annotator "TA"]
[PlyCount "68"]
[EventDate "2022.11.17"]
[EventCountry "BAN"]
[SourceTitle "playchess.com"]
[Source "ChessBase"]
[SourceQuality "1"]
[TimeControl "40/5400+30:1800+30"]

{[%evp 11,68,-51,-64,-62,-25,-35,-16,-40,1,-47,-35,-41,-19,-29,-27,-34,-31,-17,-14,-100,-97,-99,-94,-97,-93,-93,-94,-126,-93,-89,-89,-93,-83,-109,-93,-93,-93,-93,-93,-88,-55,-77,-71,-87,-87,-93,-71,-93,-86,-85,0,-86,0,-71,0,-86,0,-75,29999]} 1. d4 {[%emt 0:00:05]} d5 {[%emt 0:01:16]} 2. c4 {[%emt 0:00:09]} dxc4 {[%emt 0:00:24]} 3. Nf3 {[%emt 0:00:41]} Nf6 {[%emt 0:00:07]} 4. Nc3 {[%emt 0:03:23]} a6 {[%emt 0:00:33]} 5. a4 {[%emt 0:01:01]} Nc6 {[%emt 0:00:21]} 6. e4 {[%emt 0:03:43]} Bg4 {[%emt 0:02:45][%cal Oe7e5]} 7. d5 {[%emt 0:06:43] D24: Queen's Gambit Accepted: 3 Nf3 Nf6 4 Nc3.} Ne5 {[%emt 0:20:00]} 8. Be2 {[%emt 0:00:34]} Bxf3 {[%emt 0:03:18]} 9. gxf3 {[%emt 0:00:30] The position is equal.} c6 {[%emt 0:06:30] [#]} 10. dxc6 $146 {[%emt 0:05:20]} (10. Bf4 $11 {deserves consideration.} Qd6 11. dxc6 bxc6 12. O-O (12. Bxe5 Qxe5 13. Qd2 e6 $15)) ({Predecessor:} 10. f4 Nd3+ 11. Bxd3 cxd3 12. Qxd3 cxd5 13. e5 Nd7 14. Qxd5 Qc7 15. e6 fxe6 16. Qxe6 {0-1 (40) Bykhovsky,A (2496)-Wiebe,I (1997) Chess.com INT 2020}) 10... Qxd1+ $15 {[%emt 0:07:33]} 11. Kxd1 {[%emt 0:03:31]} Rd8+ {[%emt 0:04:03]} ({But not} 11... bxc6 12. Kc2 $11) 12. Kc2 {[%emt 0:01:27]} Nxc6 {[%emt 0:01:23]} 13. Be3 {[%emt 0:04:35]} Nd4+ {[%emt 0:05:05]} 14. Bxd4 {[%emt 0:02:47]} Rxd4 {[%emt 0:00:05]} 15. a5 {[%emt 0:02:33]} (15. Rhd1 $11 {remains equal.} e5 16. f4) 15... e6 $17 {[%emt 0:04:42]} 16. Ra4 {[%emt 0:07:41]} Bc5 {[%emt 0:01:57]} 17. Rd1 {[%emt 0:05:40]} Rxd1 {[%emt 0:02:42]} 18. Nxd1 {[%emt 0:00:40]} Bd6 {[%emt 0:01:15]} 19. Rxc4 {[%emt 0:00:44] [#] aiming for Rc8+.} Kd7 {[%emt 0:00:49] Against Rc8} 20. h3 {[%emt 0:04:53]} Rc8 {[%emt 0:00:36]} 21. Kb3 {[%emt 0:01:03]} Rxc4 {[%emt 0:00:20]} 22. Bxc4 {[%emt 0:01:10][%mdl 4096] Endgame KBN-KBN} Nh5 {[%emt 0:04:03]} 23. Ka4 {[%emt 0:01:06]} Nf4 {[%emt 0:00:47]} 24. Bf1 {[%emt 0:00:23]} Kc6 {[%emt 0:04:18]} 25. b4 {[%emt 0:01:44]} f6 {[%emt 0:04:41]} 26. Ne3 {[%emt 0:03:26]} Be5 {[%emt 0:01:30]} 27. Kb3 {[%emt 0:01:28]} Bd4 {[%emt 0:01:45]} 28. Nd1 {[%emt 0:02:10]} Ba7 {[%emt 0:01:08]} 29. Kc3 {[%emt 0:01:06]} Kd6 {[%emt 0:02:17]} 30. Ne3 {[%emt 0:02:47]} Kc6 {[%emt 0:00:14]} 31. Nd1 $1 {[%emt 0:03:12]} Kd6 {[%emt 0:03:09]} 32. Ne3 {[%emt 0:01:00]} Kc6 {[%emt 0:00:06]} 33. Nd1 $1 {[%emt 0:00:40]} Kd6 {[%emt 0:00:09]} 34. Ne3 {[%emt 0:01:12]} Ke5 $2 {[%emt 0:17:39][%mdl 40960] Weighted Error Value: White=0.09 (flawless) /Black=0.20 (precise) . An unexpected result.} (34... Kc7 $17) 1/2-1/2

[Event "41st BAN National Women Chess-ch 2022"]
[Site "Dhaka"]
[Date "2022.11.18"]
[Round "2.2"]
[White "Jannatul, Ferdous"]
[Black "Tasnia Tarannum, Orpa"]
[Result "1/2-1/2"]
[ECO "E61"]
[WhiteElo "1861"]
[BlackElo "1662"]
[Annotator "NA RC COMBH"]
[PlyCount "105"]
[EventDate "2022.11.17"]
[EventCountry "BAN"]
[SourceTitle "playchess.com"]
[Source "ChessBase"]
[SourceQuality "1"]
[TimeControl "40/5400+30:1800+30"]

{[%evp 8,102,22,0,17,5,10,3,2,0,21,32767,32767,32767,32,19,42,56,45,58,62,0,91,77,75,34,14,17,77,33,39,37,38,39,102,43,42,49,36,21,29,55,64,-31,0,-16,0,-10,26,-2,6,-43,-25,-40,-37,-8,0,-30,-6,-41,-33,-52,-13,0,-9,0,0,0,55,0,183,84,76,62,146,139,181,168,199,0,0,0,12,0,0,0,38,0,18,0,46,0,0,0,40,0,0]} 1. d4 {[%emt 0:01:21]} Nf6 {[%emt 0:00:35]} 2. Nf3 {[%emt 0:00:46]} b6 {[%emt 0:00:45]} 3. Bf4 {[%emt 0:00:32]} Bb7 {[%emt 0:00:07]} 4. e3 {[%emt 0:00:09]} g6 {[%emt 0:00:09]} 5. Be2 {[%emt 0:00:38]} Bg7 {[%emt 0:00:16]} 6. O-O {[%emt 0:01:12]} O-O {[%emt 0:00:30]} 7. c4 {[%emt 0:00:52]} d6 {[%emt 0:00:31]} 8. Nc3 {[%emt 0:00:51]} Nbd7 {[%emt 0:00:43]} 9. Qc2 {[%emt 0:01:57]} Re8 {[%emt 0:05:16]} 10. Rfd1 {[%emt 0:01:38]} Qc8 {[%emt 0:03:11]} 11. h3 {[%emt 0:09:00]} Nh5 {[%emt 0:16:58]} 12. Bh2 {[%emt 0:02:37]} Nhf6 {[%emt 0:18:00]} 13. Rac1 {[%emt 0:01:22]} Bh8 {[%emt 0:00:59]} 14. a4 {[%emt 0:06:37]} ({White should play} 14. a3 $16) 14... e5 {[%emt 0:01:33]} (14... a5 $1 $11) 15. dxe5 {[%emt 0:01:44]} dxe5 {[%emt 0:00:31]} 16. b4 {[%emt 0:21:13]} (16. c5 $16) 16... a5 $1 {[%emt 0:04:18]} 17. b5 {[%emt 0:04:01]} Re7 {[%emt 0:01:35]} (17... Bg7 $11 {keeps the balance.}) 18. Nd2 {[%emt 0:03:12]} (18. c5 $16 Nxc5 19. Nxe5) 18... Nc5 {[%emt 0:02:13]} 19. Nb3 {[%emt 0:02:32]} Nfd7 {[%emt 0:09:16]} 20. Nd5 $1 {[%emt 0:06:34]} Bxd5 {[%emt 0:03:38]} ({Black should try} 20... Re8 $14) 21. Nxc5 {[%emt 0:01:51]} ({Don't play} 21. Rxd5 $6 Nxa4 22. Bf3 Ndc5 $11) (21. cxd5 $16 Nxb3 22. Qxb3) 21... Nxc5 {[%emt 0:02:41]} 22. cxd5 {[%emt 0:01:25]} Qd7 {[%emt 0:01:06]} 23. Bg3 {[%emt 0:17:09]} Qd6 {[%emt 0:01:48]} 24. f3 {[%emt 0:01:19]} Rd8 {[%emt 0:00:45]} (24... Bg7 $11) 25. Bh4 {[%emt 0:01:04]} (25. e4 $14) 25... Bf6 {[%emt 0:00:16]} 26. Be1 {[%emt 0:00:25]} Ra8 {[%emt 0:03:49]} 27. Bg3 {[%emt 0:02:27]} Rd8 {[%emt 0:04:16]} (27... Bg5 $5 {[%cal Rg5e3]} 28. Bf2 f5 $11) 28. Be1 {[%emt 0:03:33]} (28. Qc4 $14) 28... Ra8 {[%emt 0:00:04]} 29. h4 {[%emt 0:00:50]} ({White should play} 29. e4 $11) 29... e4 {[%emt 0:02:47]} 30. f4 {[%emt 0:00:31]} h5 {[%emt 0:00:18]} 31. Qa2 {[%emt 0:04:05]} Rd7 {[%emt 0:01:51]} 32. g3 {[%emt 0:00:53]} Qe7 {[%emt 0:01:47]} 33. Bc4 {[%emt 0:01:15]} Rd6 {[%emt 0:01:39]} 34. Rc2 {[%emt 0:00:35]} (34. Be2 $11) 34... Rdd8 {[%emt 0:04:44]} (34... Rad8 $15) 35. Bd2 {[%emt 0:00:43]} Qd7 {[%emt 0:00:14]} 36. Kh2 {[%emt 0:00:48]} Qg4 {[%emt 0:01:04]} 37. Rf1 {[%emt 0:00:16]} Nb7 {[%emt 0:01:53]} ({Better is} 37... Rd7 $11) 38. Bc3 {[%emt 0:00:54]} (38. Bc1 $1 $14) 38... Be7 $2 {[%emt 0:05:12] [#]} (38... Bxc3 $11 {and Black has nothing to worry.} 39. Rxc3 (39. Be2 Qf5 $15) 39... Qf5) 39. Be5 {[%emt 0:00:26]} (39. Rg2 $1 $18) 39... Bd6 {[%emt 0:01:19]} 40. Bf6 {[%emt 0:00:36]} Re8 {[%emt 0:00:47] [#]} (40... Nc5 $14) 41. Be2 {[%emt 0:30:27]} (41. Rg2 $1 $18 {is the precise move to win.}) 41... Qd7 {[%emt 0:30:14]} (41... Qf5 $16 42. Ba1 Kh7) 42. Qa1 {[%emt 0:00:00]} Kh7 {[%emt 0:00:00] [#]} 43. Bc4 $2 {[%emt 0:00:00]} (43. g4 $1 $18 {[%cal Rg4h5]}) 43... Nc5 {[%emt 0:00:00]} 44. Rd1 {[%emt 0:00:00]} (44. f5 $1 $14) 44... Rg8 {[%emt 0:00:00]} 45. Be5 {[%emt 0:00:00]} Rae8 {[%emt 0:00:00]} 46. Bf6 {[%emt 0:00:00]} Bf8 {[%emt 0:00:00]} 47. Qa2 {[%emt 0:00:00]} (47. d6 $1 $14) 47... Bd6 {[%emt 0:00:00]} 48. Qa1 {[%emt 0:00:00]} Be7 {[%emt 0:00:00]} 49. Be5 {[%emt 0:00:00]} Bd6 {[%emt 0:00:00]} 50. Bf6 {[%emt 0:00:00]} Be7 {[%emt 0:00:00]} 51. Be5 $11 {[%emt 0:01:30]} Bd6 {[%emt 0:00:00]} 52. Bf6 {[%emt 0:00:57]} Be7 {[%emt 0:00:00]} 53. Bxe7 {[%emt 0:04:13]} ({Better is} 53. d6 $1 $14 Bxd6 54. Rd5) 1/2-1/2

[Event "41st BAN National Women Chess-ch 2022"]
[Site "Dhaka"]
[Date "2022.11.18"]
[Round "2.3"]
[White "Hamid, Rani"]
[Black "Nusrat Jahan, Alo"]
[Result "1/2-1/2"]
[ECO "B12"]
[WhiteElo "1760"]
[BlackElo "1710"]
[Annotator "NA RC COMBH"]
[PlyCount "147"]
[EventDate "2022.11.17"]
[EventCountry "BAN"]
[SourceTitle "playchess.com"]
[Source "ChessBase"]
[SourceQuality "1"]
[TimeControl "40/5400+30:1800+30"]

1. e4 {[%emt 0:01:04]} c6 {[%emt 0:00:23]} 2. d4 {[%emt 0:00:16]} d5 {[%emt 0:00:09]} 3. e5 {[%emt 0:01:03]} Bf5 {[%emt 0:00:14]} 4. Nf3 {[%emt 0:00:08]} e6 {[%emt 0:00:05]} 5. c4 {[%emt 0:01:26]} Bxb1 {[%emt 0:05:02]} 6. Rxb1 {[%emt 0:00:16]} Qa5+ {[%emt 0:00:04]} 7. Bd2 {[%emt 0:00:16]} Qxa2 {[%emt 0:00:18]} 8. c5 {[%emt 0:03:39]} b5 {[%emt 0:02:58]} 9. Bd3 {[%emt 0:04:42]} Qa6 {[%emt 0:04:04]} 10. O-O {[%emt 0:00:21]} g6 {[%emt 0:03:19]} 11. Ng5 {[%emt 0:03:35]} Qb7 {[%emt 0:05:28]} 12. f4 {[%emt 0:03:44]} Ne7 {[%emt 0:06:01]} 13. Rf3 {[%emt 0:04:31]} h6 {[%emt 0:05:05]} 14. Rh3 {[%emt 0:02:12]} Bg7 {[%emt 0:11:23]} 15. Nf3 {[%emt 0:00:14]} Nd7 {[%emt 0:00:46]} 16. Ba5 {[%emt 0:03:48]} Nf5 {[%emt 0:03:55]} 17. Qe2 {[%emt 0:04:59]} a6 {[%emt 0:05:53]} 18. Ra1 {[%emt 0:05:29]} Nf8 {[%emt 0:13:51]} 19. g4 {[%emt 0:03:33]} Ne7 {[%emt 0:00:27]} 20. Be1 {[%emt 0:00:32]} O-O-O {[%emt 0:10:21]} 21. Nd2 {[%emt 0:08:40]} Nd7 {[%emt 0:07:33]} 22. Bc2 {[%emt 0:02:20]} Nb8 {[%emt 0:00:36]} 23. Rha3 {[%emt 0:01:37]} Qd7 {[%emt 0:01:16]} 24. Nf1 {[%emt 0:03:15]} f5 {[%emt 0:01:24]} 25. Ne3 {[%emt 0:01:23]} g5 {[%emt 0:02:49]} 26. gxf5 {[%emt 0:00:41]} exf5 {[%emt 0:00:03]} 27. Ng2 {[%emt 0:02:15]} Qe6 {[%emt 0:01:18]} 28. Bg3 {[%emt 0:03:36]} Rd7 {[%emt 0:04:23]} 29. Bd3 {[%emt 0:00:17]} Ra7 {[%emt 0:01:16]} 30. Be1 {[%emt 0:02:18]} Ng6 {[%emt 0:01:34]} 31. Qc2 {[%emt 0:00:54]} Rf7 {[%emt 0:01:08]} 32. Bg3 {[%emt 0:02:49]} Bf8 {[%emt 0:01:01]} 33. Rf1 {[%emt 0:02:35]} Ne7 {[%emt 0:00:37]} 34. Ne3 {[%emt 0:01:33]} Rg8 {[%emt 0:00:57]} 35. Kh1 {[%emt 0:01:04]} g4 {[%emt 0:01:11]} 36. Bh4 {[%emt 0:02:07]} Kb7 {[%emt 0:00:43]} 37. Bxe7 {[%emt 0:03:02]} Qxe7 {[%emt 0:00:26]} 38. Nxf5 {[%emt 0:01:26]} Qd8 {[%emt 0:00:52]} 39. Ng3 {[%emt 0:10:57]} Be7 {[%emt 0:00:32]} 40. Bg6 {[%emt 0:00:57]} Rff8 {[%emt 0:00:25]} 41. f5 {[%emt 0:30:50]} Bh4 {[%emt 0:30:28]} 42. Qe2 {[%emt 0:02:18]} Qg5 {[%emt 0:00:00]} 43. e6 {[%emt 0:00:00]} Qf6 {[%emt 0:00:00]} 44. Qxg4 {[%emt 0:00:00]} Bg5 {[%emt 0:00:00]} 45. Re1 {[%emt 0:00:00]} Qe7 {[%emt 0:00:00]} 46. Re2 {[%emt 0:00:00]} a5 {[%emt 0:00:00]} 47. Rxa5 {[%emt 0:00:00]} Na6 {[%emt 0:00:00]} 48. Ra3 {[%emt 0:00:00]} Nc7 {[%emt 0:00:00]} 49. Bf7 {[%emt 0:00:00]} Rh8 {[%emt 0:00:00]} 50. b4 {[%emt 0:00:00]} Ra8 {[%emt 0:00:00]} 51. Rea2 {[%emt 0:00:00]} Rxa3 {[%emt 0:00:00]} 52. Rxa3 {[%emt 0:00:00]} Na6 {[%emt 0:00:00]} 53. Qd1 {[%emt 0:00:00]} Ra8 {[%emt 0:00:00]} 54. Qb1 {[%emt 0:02:32]} Qf6 {[%emt 0:00:00]} 55. Qa1 {[%emt 0:04:21]} Bf4 {[%emt 0:00:00]} 56. Qf1 {[%emt 0:02:50]} Bg5 {[%emt 0:00:00]} 57. Ne2 {[%emt 0:00:57]} Rf8 {[%emt 0:00:00]} 58. Qb1 {[%emt 0:00:48]} Ra8 {[%emt 0:00:00]} 59. Bg6 {[%emt 0:00:07]} Bd2 {[%emt 0:00:00]} 60. Rb3 {[%emt 0:00:25]} Qh4 {[%emt 0:00:00]} 61. Ng3 {[%emt 0:00:37]} Bxb4 {[%emt 0:00:37]} 62. Qf1 {[%emt 0:03:04]} Qxd4 {[%emt 0:00:37]} 63. e7 {[%emt 0:00:08]} Nc7 {[%emt 0:00:17]} 64. f6 {[%emt 0:00:35]} Bxc5 {[%emt 0:00:34]} 65. Rb1 {[%emt 0:01:40]} Qh4 {[%emt 0:04:07]} 66. e8=Q {[%emt 0:01:06]} Nxe8 {[%emt 0:00:00]} 67. Bxe8 {[%emt 0:00:15]} Rxe8 {[%emt 0:00:00]} 68. Rxb5+ {[%emt 0:00:15]} cxb5 {[%emt 0:00:00]} 69. Qxb5+ {[%emt 0:00:03]} Bb6 {[%emt 0:00:00]} 70. Qxe8 {[%emt 0:01:13]} Qxf6 {[%emt 0:00:03]} 71. Qd7+ {[%emt 0:00:02]} Ka6 {[%emt 0:00:25]} 72. Qxd5 {[%emt 0:00:09]} Qf2 {[%emt 0:00:50]} 73. Qd1 {[%emt 0:02:24]} Qe3 {[%emt 0:00:48]} 74. Qe2+ {[%emt 0:00:16]} 1/2-1/2

[Event "41st BAN National Women Chess-ch 2022"]
[Site "Dhaka"]
[Date "2022.11.18"]
[Round "2.4"]
[White "Ahmed, Walijah"]
[Black "Talukder, Umme Taslima Protiva"]
[Result "1-0"]
[ECO "B78"]
[WhiteElo "1977"]
[BlackElo "1780"]
[Annotator "TA"]
[PlyCount "87"]
[EventDate "2022.11.17"]
[EventCountry "BAN"]
[SourceTitle "playchess.com"]
[Source "ChessBase"]
[SourceQuality "1"]
[TimeControl "40/5400+30:1800+30"]

{[%evp 31,87,16,90,107,148,121,303,308,286,262,424,433,835,700,1281,1228,1275,547,1229,-391,29997,371,804,803,875,779,937,0,875,873,834,686,679,673,673,668,878,852,827,679,674,654,659,551,515,523,1996,1996,8746,1032,1017,1017,1737,1400,29972,29973,5828,5114]} 1. e4 {[%emt 0:00:04]} c5 {[%emt 0:00:15]} 2. Nf3 {[%emt 0:00:10]} d6 {[%emt 0:00:16]} 3. d4 {[%emt 0:00:18]} cxd4 {[%emt 0:00:10]} 4. Nxd4 {[%emt 0:00:06]} Nf6 {[%emt 0:00:06]} 5. Nc3 {[%emt 0:00:15]} g6 {[%emt 0:00:33]} 6. Be3 {[%emt 0:00:24]} Bg7 {[%emt 0:00:10]} 7. f3 {[%emt 0:00:27]} O-O {[%emt 0:01:04]} 8. Qd2 {[%emt 0:01:32]} Nc6 {[%emt 0:00:29]} 9. Bc4 {[%emt 0:02:29]} Bd7 {[%emt 0:00:35]} 10. h4 {[%emt 0:03:01]} h5 {[%emt 0:02:34]} 11. O-O-O {[%emt 0:01:07]} Ne5 {[%emt 0:03:29]} 12. Bb3 {[%emt 0:03:55]} Rc8 {[%emt 0:00:46]} 13. Bh6 {[%emt 0:11:51]} Nc4 {[%emt 0:01:12]} 14. Bxc4 {[%emt 0:00:46]} Rxc4 {[%emt 0:00:03]} 15. Bxg7 {[%emt 0:00:15]} Kxg7 {[%emt 0:00:12]} 16. g4 {[%emt 0:03:19]} Qa5 {[%emt 0:08:56]} (16... hxg4 $11 17. h5 Rh8) 17. Nb3 $16 {[%emt 0:17:18] B78: Sicilian Dragon: Yugoslav Attack, 9 Bc4 Bd7 10 0-0-0 Rc8.} Qb4 {[%emt 0:06:30]} 18. e5 {[%emt 0:04:20]} Ne8 {[%emt 0:24:19]} (18... dxe5 $16 19. g5 Be6) 19. a3 $18 {[%emt 0:04:03] White has a decisive advantage.} Qb6 {[%emt 0:01:30]} 20. gxh5 {[%emt 0:00:43] [#]} Rh8 $146 {[%emt 0:05:02]} (20... Bf5 {was worth a try.} 21. Nd4 Rxd4 22. Qxd4 Qxd4 23. Rxd4 dxe5) ({Predecessor:} 20... f6 21. hxg6 Rh8 22. h5 Rh6 23. Qd5 {1-0 (23) Glasbergerova,L (1203)-Havelkova,B (1468) Kouty nad Desnou 2020}) 21. hxg6 {[%emt 0:01:56] And now h5 would win.} fxg6 {[%emt 0:00:48]} (21... Rh5 $142 22. exd6 Qxd6) 22. Qg5 {[%emt 0:04:31]} Kf7 {[%emt 0:03:24]} 23. h5 {[%emt 0:03:10]} gxh5 {[%emt 0:06:10] [#]} 24. Rh2 {[%emt 0:36:30]} (24. Nd5 $142 $1 Qd8 25. Rdg1) 24... h4 {[#]} 25. Rxh4 $4 {[%emt 0:00:00][%mdl 8192]} Rh7 $4 {[%emt 0:34:27][%mdl 8192]} ({Don't play} 25... Rhxh4 {[#]} 26. Nd5 $1 Qd8 27. Na5 $1 dxe5 28. Nxc4 (28. Rg1 $2 Nf6 $19) 28... Rxc4 29. Qh5+ Kf8 30. Rg1 $18) (25... Rcxh4 $19 26. Nd5 Qd8) 26. Rh5 $2 (26. Rxh7+ {mates} Kf8 27. Qxe7+ Kg8 28. Qf7#) 26... Rxh5 $2 {[%emt 0:00:00]} (26... Rg7 27. Qd2 Rg1) 27. Qxh5+ {[%emt 0:00:00]} Kf8 {[%emt 0:00:00]} 28. Qh6+ {[%emt 0:00:00]} Kf7 {[%emt 0:00:00]} 29. Qh5+ {[%emt 0:00:00]} Kf8 {[%emt 0:00:00] [#]} 30. Nd4 $1 {[%emt 0:00:00][%mdl 512]} Rxd4 {[%emt 0:00:00]} 31. Qh8+ {[%emt 0:00:00]} Kf7 {[%emt 0:00:00] White must now prevent ...Rxd1+.} 32. Rxd4 {[%emt 0:00:00]} ({Weaker is} 32. e6+ Bxe6 33. Qxd4 Qxd4 34. Rxd4 Bd7 35. Rf4+ Kg6 $18) 32... Bf5 {[%emt 0:00:00] Prevents Qh7+.} 33. exd6 {[%emt 0:00:00]} exd6 {[%emt 0:00:00]} 34. Qh5+ {[%emt 0:00:00]} Bg6 {[%emt 0:00:00]} 35. Qd5+ {[%emt 0:00:00]} Kg7 {[%emt 0:00:00]} 36. Ne4 {[%emt 0:00:00][%cal Re4d6]} Qc7 {[%emt 0:00:00]} 37. c4 {[%emt 0:00:00][%cal Bc2c4,Bc4c5,Bc5c6,Bc6c7][%mdl 32]} Qe7 {[%emt 0:00:00]} 38. c5 {[%emt 0:00:00]} Qc7 {[%emt 0:00:00]} 39. Nxd6 {[%emt 0:00:00] Threatening mate with Qe5+.} Nf6 {[%emt 0:00:00]} 40. Qxb7 {[%emt 0:00:00]} Qxb7 {[%emt 0:00:00]} 41. Nxb7 {[%emt 0:27:29]} Kf7 {[%emt 0:30:43]} 42. c6 {[%emt 0:00:10] White threatens c7 and mate.} Ke7 {[%emt 0:00:38]} 43. c7 {[%emt 0:01:28]} Bf5 {[%emt 0:00:13]} 44. Nd6 {[%emt 0:00:09] White took control after the opening.  Weighted Error Value: White=1.47/Black=1.01} 1-0

[Event "41st BAN National Women Chess-ch 2022"]
[Site "Dhaka"]
[Date "2022.11.18"]
[Round "2.5"]
[White "Kazi Zarin, Tasnim"]
[Black "Wadifa, Ahmed"]
[Result "0-1"]
[ECO "C42"]
[WhiteElo "1860"]
[BlackElo "1656"]
[Annotator "NA RC COMBH"]
[PlyCount "32"]
[EventDate "2022.11.17"]
[EventCountry "BAN"]
[SourceTitle "playchess.com"]
[Source "ChessBase"]
[SourceQuality "1"]
[TimeControl "40/5400+30:1800+30"]

{[%evp 10,32,28,11,15,22,17,13,26,10,18,9,37,33,25,33,28,28,21,-22,-18,-18,-8,-550,-598]} 1. e4 {[%emt 0:00:09]} e5 {[%emt 0:00:05]} 2. Nf3 {[%emt 0:00:04]} Nf6 {[%emt 0:00:05]} 3. Nxe5 {[%emt 0:00:05]} d6 {[%emt 0:00:08]} 4. Nf3 {[%emt 0:00:04]} Nxe4 {[%emt 1:32:12]} 5. Bd3 {[%emt 0:00:04]} Nf6 {[%emt 0:00:00]} 6. O-O {[%emt 0:00:31]} Be7 {[%emt 0:00:00]} 7. c3 {[%emt 0:00:32]} O-O {[%emt 0:00:00]} 8. Bc2 {[%emt 0:01:01]} d5 {[%emt 0:00:00]} 9. d4 {[%emt 0:01:00]} h6 {[%emt 0:00:00]} 10. Re1 {[%emt 0:01:58]} Re8 {[%emt 0:00:00]} 11. Bf4 {[%emt 0:06:31]} c5 {[%emt 0:00:00]} 12. dxc5 {[%emt 0:02:00]} Bxc5 {[%emt 0:00:00]} 13. Rxe8+ {[%emt 0:00:17]} Qxe8 {[%emt 0:00:00]} 14. Be5 {[%emt 0:04:06] [#]} (14. Nbd2 $142) 14... Bxf2+ $1 {[%emt 0:00:00]} 15. Kxf2 $11 {[%emt 0:00:24]} Ng4+ {[%emt 0:00:00]} 16. Kf1 $2 {[%emt 0:00:07]} (16. Kg1 $11 {and White stays safe.} Nxe5 17. Qxd5 Nxf3+ 18. Qxf3) 16... Ne3+ {[%emt 0:00:00]} ({Weaker is} 16... Nxe5 17. Qxd5 Nxf3 18. Qxf3 $11) 0-1

[Event "41st BAN National Women Chess-ch 2022"]
[Site "Dhaka"]
[Date "2022.11.18"]
[Round "2.6"]
[White "Warsia, Khusbu"]
[Black "Sabiha, Marjana"]
[Result "1-0"]
[ECO "B07"]
[WhiteElo "1540"]
[BlackElo "1267"]
[Annotator "NA RC COMBH"]
[PlyCount "97"]
[EventDate "2022.11.17"]
[EventCountry "BAN"]
[SourceTitle "playchess.com"]
[Source "ChessBase"]
[SourceQuality "1"]
[TimeControl "40/5400+30:1800+30"]

1. e4 {[%emt 0:00:14]} d6 {[%emt 0:00:12]} 2. d4 {[%emt 0:00:16]} Nf6 {[%emt 0:00:23]} 3. Nc3 {[%emt 0:00:11]} c6 {[%emt 0:00:20]} 4. Nf3 {[%emt 0:00:50]} Qa5 {[%emt 0:01:24]} 5. Bd3 {[%emt 0:00:16]} Bg4 {[%emt 0:02:29]} 6. h3 {[%emt 0:00:21]} Bxf3 {[%emt 0:00:37]} 7. Qxf3 {[%emt 0:00:08]} Nbd7 {[%emt 0:01:13]} 8. O-O {[%emt 0:01:49]} e5 {[%emt 0:01:55]} 9. d5 {[%emt 0:00:59]} cxd5 {[%emt 0:01:35]} 10. exd5 {[%emt 0:00:29]} a6 {[%emt 0:01:43]} 11. a3 {[%emt 0:01:34]} Be7 {[%emt 0:00:43]} 12. Be3 {[%emt 0:00:43]} Qc7 {[%emt 0:02:26]} 13. Rfd1 {[%emt 0:03:33]} Nc5 {[%emt 0:02:40]} 14. Bxc5 {[%emt 0:01:50]} Qxc5 {[%emt 0:02:05]} 15. Ne4 {[%emt 0:00:29]} Qb6 {[%emt 0:02:18]} 16. Nxf6+ {[%emt 0:00:26]} Bxf6 {[%emt 0:00:16]} 17. Rab1 {[%emt 0:00:07]} Qd8 {[%emt 0:01:18]} 18. c4 {[%emt 0:00:22]} b6 {[%emt 0:00:41]} 19. b4 {[%emt 0:00:33]} O-O {[%emt 0:00:27]} 20. Rbc1 {[%emt 0:00:53]} Be7 {[%emt 0:01:06]} 21. Rc3 {[%emt 0:10:15]} g6 {[%emt 0:05:15]} 22. g4 {[%emt 0:02:29]} Bf6 {[%emt 0:02:12]} 23. Be4 {[%emt 0:03:32]} Rc8 {[%emt 0:03:03]} 24. Rdc1 {[%emt 0:01:52]} Be7 {[%emt 0:01:14]} 25. Qg3 {[%emt 0:03:53]} Bh4 {[%emt 0:01:16]} 26. Qf3 {[%emt 0:05:06]} Qg5 {[%emt 0:00:52]} 27. Kh1 {[%emt 0:01:19]} Qe7 {[%emt 0:03:57]} 28. R1c2 {[%emt 0:12:25]} Rc7 {[%emt 0:01:43]} 29. Qe3 {[%emt 0:00:31]} Rb8 {[%emt 0:05:01]} 30. c5 {[%emt 0:01:42]} bxc5 {[%emt 0:01:14]} 31. bxc5 {[%emt 0:00:41]} dxc5 {[%emt 0:01:44]} 32. Rxc5 {[%emt 0:01:10]} Rb1+ {[%emt 0:03:49]} 33. Kg2 {[%emt 0:02:57]} Rxc5 {[%emt 0:01:06]} 34. Rxc5 {[%emt 0:01:24]} Rb2 {[%emt 0:02:24]} 35. Bc2 {[%emt 0:03:16]} Qd6 {[%emt 0:05:22]} 36. Qc3 {[%emt 0:03:17]} Rb8 {[%emt 0:02:38]} 37. Be4 {[%emt 0:07:26]} Be7 {[%emt 0:04:51]} 38. Rc6 {[%emt 0:04:59]} Qxa3 {[%emt 0:05:39]} 39. Qxe5 {[%emt 0:00:33]} Rd8 {[%emt 0:02:44]} 40. Qc7 {[%emt 0:03:56]} Qb4 {[%emt 0:07:53]} 41. Bf3 {[%emt 0:34:26]} a5 {[%emt 0:38:42]} 42. Rc4 {[%emt 0:03:48]} Qe1 {[%emt 0:03:12]} 43. Re4 {[%emt 0:00:19]} Qd2 {[%emt 0:09:17]} 44. Rxe7 {[%emt 0:00:13]} Rf8 {[%emt 0:00:26]} 45. d6 {[%emt 0:00:11]} Qg5 {[%emt 0:00:00]} 46. Re3 {[%emt 0:00:00]} Qd8 {[%emt 0:00:00]} 47. Qe7 {[%emt 0:00:00]} a4 {[%emt 0:00:00]} 48. d7 {[%emt 0:00:00]} a3 {[%emt 0:00:00]} 49. Qxd8 {[%emt 0:00:00]} 1-0